[Event "December 5 Early 2023"]
[Site "https://www.chess.com"]
[Date "2023.12.05"]
[Round "2"]
[White "Dragnev, Valentin"]
[Black "Erzhanov, Arman"]
[Result "1-0"]
[Board "71"]
[TimeControl "180+1"]
[WhiteFideId "1634852"]
[BlackFideId "4138821"]
[WhiteElo "2786"]
[BlackElo "2551"]
[WhiteTeam "AUT"]
[BlackTeam "KAZ"]
[WhiteClock "0:00:10"]
[BlackClock "0:00:06"]

1. Nf3 {[%clk 0:03:00]}  c5 {[%clk 0:02:54]} 2. c4 {[%clk 0:02:59]}  Nc6 {[%clk 0:02:53]} 3. Nc3 {[%clk 0:02:58]}  e5 {[%clk 0:02:52]} 4. e3 {[%clk 0:02:56]}  f5 {[%clk 0:02:52]} 5. d4 {[%clk 0:02:54]}  e4 {[%clk 0:02:52]} 6. d5 {[%clk 0:02:48]}  Nb8 {[%clk 0:02:51]} 7. Ng1 {[%clk 0:02:45]}  Nf6 {[%clk 0:02:50]} 8. h4 {[%clk 0:02:45]}  Bd6 {[%clk 0:02:50]} 9. h5 {[%clk 0:02:41]}  O-O {[%clk 0:02:49]} 10. h6 {[%clk 0:02:41]}  g6 {[%clk 0:02:48]} 11. Be2 {[%clk 0:02:34]}  Be5 {[%clk 0:02:47]} 12. Qc2 {[%clk 0:02:33]}  d6 {[%clk 0:02:46]} 13. Bd2 {[%clk 0:02:29]}  Na6 {[%clk 0:02:45]} 14. a3 {[%clk 0:02:29]}  Nc7 {[%clk 0:02:45]} 15. b4 {[%clk 0:02:22]}  b6 {[%clk 0:02:24]} 16. Nh3 {[%clk 0:02:11]}  Bd7 {[%clk 0:02:14]} 17. Nf4 {[%clk 0:02:11]}  Qe7 {[%clk 0:02:12]} 18. Rb1 {[%clk 0:01:57]}  Na6 {[%clk 0:02:07]} 19. Nb5 {[%clk 0:01:43]}  Bxb5 {[%clk 0:02:01]} 20. cxb5 {[%clk 0:01:44]}  Nc7 {[%clk 0:02:00]} 21. bxc5 {[%clk 0:01:42]}  dxc5 {[%clk 0:01:57]} 22. Bc4 {[%clk 0:01:42]}  Qd6 {[%clk 0:01:53]} 23. Bc3 {[%clk 0:01:31]}  Bxc3+ {[%clk 0:01:48]} 24. Qxc3 {[%clk 0:01:30]}  Rad8 {[%clk 0:01:39]} 25. Rd1 {[%clk 0:01:21]}  Rd7 {[%clk 0:01:07]} 26. Ke2 {[%clk 0:01:20]}  Nce8 {[%clk 0:01:01]} 27. a4 {[%clk 0:01:08]}  Ng4 {[%clk 0:00:53]} 28. a5 {[%clk 0:00:47]}  Ne5 {[%clk 0:00:49]} 29. axb6 {[%clk 0:00:47]}  axb6 {[%clk 0:00:50]} 30. Ra1 {[%clk 0:00:47]}  Nf6 {[%clk 0:00:46]} 31. Ra6 {[%clk 0:00:32]}  Rb8 {[%clk 0:00:39]} 32. Rha1 {[%clk 0:00:31]}  Nxc4 {[%clk 0:00:30]} 33. Qxc4 {[%clk 0:00:31]}  g5 {[%clk 0:00:19]} 34. Ne6 {[%clk 0:00:27]}  Qxd5 {[%clk 0:00:18]} 35. Qxd5 {[%clk 0:00:26]}  Nxd5 {[%clk 0:00:18]} 36. Nxg5 {[%clk 0:00:20]}  Nc3+ {[%clk 0:00:15]} 37. Kf1 {[%clk 0:00:20]}  Rbd8 {[%clk 0:00:14]} 38. g3 {[%clk 0:00:20]}  Rd1+ {[%clk 0:00:13]} 39. Kg2 {[%clk 0:00:21]}  R1d2 {[%clk 0:00:13]} 40. Rxb6 {[%clk 0:00:19]}  Nd1 {[%clk 0:00:12]} 41. Ra7 {[%clk 0:00:16]}  Nxe3+ {[%clk 0:00:12]} 42. Kh3 {[%clk 0:00:14]}  Rxf2 {[%clk 0:00:07]} 43. Rg7+ {[%clk 0:00:14]}  Kf8 {[%clk 0:00:07]} 44. Nxh7+ {[%clk 0:00:11]}  Ke8 {[%clk 0:00:06]} 45. Re6# {[%clk 0:00:10]} 1-0

[Event "December 5 Early 2023"]
[Site "https://www.chess.com"]
[Date "2023.12.05"]
[Round "2"]
[White "Tologon tegin, Semetei"]
[Black "GMVignirVatnar"]
[Result "1-0"]
[Board "72"]
[TimeControl "180+1"]
[WhiteFideId "13800574"]
[WhiteElo "2549"]
[BlackElo "2784"]
[WhiteTeam "KGZ"]
[WhiteClock "0:00:40"]
[BlackClock "0:00:00"]

1. Nf3 {[%clk 0:02:50]}  d5 {[%clk 0:02:59]} 2. e3 {[%clk 0:02:51]}  Nf6 {[%clk 0:02:59]} 3. d4 {[%clk 0:02:52]}  e6 {[%clk 0:02:58]} 4. Bd3 {[%clk 0:02:51]}  c5 {[%clk 0:02:52]} 5. O-O {[%clk 0:02:51]}  Nc6 {[%clk 0:02:49]} 6. b3 {[%clk 0:02:51]}  Bd6 {[%clk 0:02:42]} 7. Bb2 {[%clk 0:02:46]}  O-O {[%clk 0:02:42]} 8. Nbd2 {[%clk 0:02:43]}  b6 {[%clk 0:02:42]} 9. a3 {[%clk 0:02:42]}  Bb7 {[%clk 0:02:31]} 10. c4 {[%clk 0:02:39]}  cxd4 {[%clk 0:02:21]} 11. exd4 {[%clk 0:02:38]}  Rc8 {[%clk 0:02:19]} 12. Re1 {[%clk 0:02:15]}  Na5 {[%clk 0:02:01]} 13. c5 {[%clk 0:02:00]}  bxc5 {[%clk 0:01:00]} 14. dxc5 {[%clk 0:02:01]}  Bb8 {[%clk 0:00:34]} 15. Ne5 {[%clk 0:01:26]}  Nc6 {[%clk 0:00:31]} 16. Nxc6 {[%clk 0:01:16]}  Bxc6 {[%clk 0:00:25]} 17. Ba6 {[%clk 0:01:09]}  Rc7 {[%clk 0:00:24]} 18. Be5 {[%clk 0:01:08]}  Rd7 {[%clk 0:00:24]} 19. b4 {[%clk 0:01:03]}  Bxe5 {[%clk 0:00:23]} 20. Rxe5 {[%clk 0:01:03]}  Qb8 {[%clk 0:00:23]} 21. Qe2 {[%clk 0:00:50]}  d4 {[%clk 0:00:00]} 22. Rg5 {[%clk 0:00:40]} 1-0

[Event "December 5 Early 2023"]
[Site "https://www.chess.com"]
[Date "2023.12.05"]
[Round "2"]
[White "Lortkipanidze, Nodar"]
[Black "Pham, Le Thao Nguyen"]
[Result "1-0"]
[Board "73"]
[TimeControl "180+1"]
[WhiteFideId "13604058"]
[BlackFideId "12401226"]
[WhiteElo "2781"]
[BlackElo "2547"]
[WhiteTeam "GEO"]
[BlackTeam "VIE"]
[WhiteClock "0:01:00"]
[BlackClock "0:00:00"]

1. e4 {[%clk 0:03:00]}  c5 {[%clk 0:02:59]} 2. Nf3 {[%clk 0:03:01]}  e6 {[%clk 0:02:58]} 3. c3 {[%clk 0:03:00]}  d5 {[%clk 0:02:52]} 4. exd5 {[%clk 0:02:58]}  exd5 {[%clk 0:02:48]} 5. d4 {[%clk 0:02:59]}  Nc6 {[%clk 0:02:49]} 6. Bd3 {[%clk 0:02:55]}  Bd6 {[%clk 0:02:47]} 7. O-O {[%clk 0:02:53]}  Nge7 {[%clk 0:02:47]} 8. dxc5 {[%clk 0:02:49]}  Bxc5 {[%clk 0:02:48]} 9. h3 {[%clk 0:02:48]}  O-O {[%clk 0:02:47]} 10. Bf4 {[%clk 0:02:45]}  Bf5 {[%clk 0:02:31]} 11. Qc2 {[%clk 0:02:45]}  Bg6 {[%clk 0:02:14]} 12. Nbd2 {[%clk 0:02:40]}  Rc8 {[%clk 0:02:12]} 13. Nb3 {[%clk 0:02:40]}  Bb6 {[%clk 0:02:10]} 14. Bxg6 {[%clk 0:02:39]}  hxg6 {[%clk 0:02:09]} 15. Rad1 {[%clk 0:02:38]}  Qd7 {[%clk 0:02:02]} 16. Ne5 {[%clk 0:02:33]}  Qf5 {[%clk 0:01:49]} 17. Qxf5 {[%clk 0:02:33]}  gxf5 {[%clk 0:01:50]} 18. Nd7 {[%clk 0:02:31]}  Rfd8 {[%clk 0:01:47]} 19. Nxb6 {[%clk 0:02:30]}  axb6 {[%clk 0:01:48]} 20. Be3 {[%clk 0:02:30]}  b5 {[%clk 0:01:42]} 21. a3 {[%clk 0:02:29]}  Ne5 {[%clk 0:01:36]} 22. Bb6 {[%clk 0:02:15]}  Rd7 {[%clk 0:01:31]} 23. Rfe1 {[%clk 0:02:06]}  N7g6 {[%clk 0:00:59]} 24. Bd4 {[%clk 0:02:00]}  Nc4 {[%clk 0:00:57]} 25. Nc5 {[%clk 0:01:59]}  Rdc7 {[%clk 0:00:45]} 26. Nd3 {[%clk 0:01:59]}  f6 {[%clk 0:00:41]} 27. b3 {[%clk 0:01:42]}  Nxa3 {[%clk 0:00:29]} 28. Nb4 {[%clk 0:01:42]}  Rxc3 {[%clk 0:00:22]} 29. Bxc3 {[%clk 0:01:38]}  Rxc3 {[%clk 0:00:23]} 30. Re3 {[%clk 0:01:24]}  d4 {[%clk 0:00:10]} 31. Rxd4 {[%clk 0:01:12]}  Rc1+ {[%clk 0:00:10]} 32. Kh2 {[%clk 0:01:13]}  Nc2 {[%clk 0:00:11]} 33. Rd8+ {[%clk 0:01:04]}  Kh7 {[%clk 0:00:11]} 34. Rc3 {[%clk 0:01:04]}  Nxb4 {[%clk 0:00:08]} 35. Rxc1 {[%clk 0:01:04]}  Nc6 {[%clk 0:00:09]} 36. Rd7 {[%clk 0:01:02]}  Nge5 {[%clk 0:00:03]} 37. Rxb7 {[%clk 0:01:02]}  Nd4 {[%clk 0:00:03]} 38. Rc3 {[%clk 0:01:02]}  Kh6 {[%clk 0:00:00]} 39. f4 {[%clk 0:01:00]} 1-0

[Event "December 5 Early 2023"]
[Site "https://www.chess.com"]
[Date "2023.12.05"]
[Round "2"]
[White "Baziuk, Vladyslav"]
[Black "Yuan, Qingyu"]
[Result "0-1"]
[Board "74"]
[TimeControl "180+1"]
[WhiteFideId "34107940"]
[BlackFideId "8609772"]
[WhiteElo "2547"]
[BlackElo "2780"]
[WhiteTeam "UKR"]
[BlackTeam "CHN"]
[WhiteClock "0:00:03"]
[BlackClock "0:00:27"]

1. e4 {[%clk 0:03:00]}  e6 {[%clk 0:02:59]} 2. d4 {[%clk 0:03:00]}  d5 {[%clk 0:03:00]} 3. e5 {[%clk 0:03:01]}  c5 {[%clk 0:03:00]} 4. c3 {[%clk 0:03:01]}  Nc6 {[%clk 0:03:01]} 5. Nf3 {[%clk 0:03:02]}  Qb6 {[%clk 0:03:01]} 6. Bd3 {[%clk 0:03:03]}  Bd7 {[%clk 0:02:56]} 7. dxc5 {[%clk 0:02:45]}  Bxc5 {[%clk 0:02:49]} 8. O-O {[%clk 0:02:44]}  a5 {[%clk 0:02:47]} 9. Qe2 {[%clk 0:02:36]}  Nge7 {[%clk 0:02:44]} 10. Nbd2 {[%clk 0:02:27]}  Ng6 {[%clk 0:02:42]} 11. Nb3 {[%clk 0:02:20]}  Be7 {[%clk 0:02:41]} 12. Nbd4 {[%clk 0:02:19]}  O-O {[%clk 0:02:28]} 13. a4 {[%clk 0:01:53]}  Rae8 {[%clk 0:02:16]} 14. Nb5 {[%clk 0:01:48]}  f6 {[%clk 0:02:01]} 15. Bxg6 {[%clk 0:01:40]}  hxg6 {[%clk 0:02:00]} 16. Be3 {[%clk 0:01:40]}  Bc5 {[%clk 0:01:51]} 17. Bxc5 {[%clk 0:01:18]}  Qxc5 {[%clk 0:01:52]} 18. exf6 {[%clk 0:01:19]}  gxf6 {[%clk 0:01:51]} 19. Nh4 {[%clk 0:01:16]}  Kf7 {[%clk 0:01:35]} 20. b4 {[%clk 0:01:00]}  Qe7 {[%clk 0:01:22]} 21. Qg4 {[%clk 0:00:45]}  Rg8 {[%clk 0:01:11]} 22. f4 {[%clk 0:00:42]}  axb4 {[%clk 0:01:04]} 23. Rae1 {[%clk 0:00:34]}  bxc3 {[%clk 0:01:02]} 24. Nc7 {[%clk 0:00:28]}  Qc5+ {[%clk 0:00:49]} 25. Kh1 {[%clk 0:00:27]}  Re7 {[%clk 0:00:50]} 26. Qg3 {[%clk 0:00:16]}  Nd4 {[%clk 0:00:47]} 27. Nb5 {[%clk 0:00:15]}  Bxb5 {[%clk 0:00:43]} 28. axb5 {[%clk 0:00:15]}  c2 {[%clk 0:00:44]} 29. f5 {[%clk 0:00:11]}  exf5 {[%clk 0:00:39]} 30. Rxe7+ {[%clk 0:00:09]}  Qxe7 {[%clk 0:00:38]} 31. Qd3 {[%clk 0:00:08]}  Qc5 {[%clk 0:00:37]} 32. Rc1 {[%clk 0:00:05]}  Qc4 {[%clk 0:00:32]} 33. Qd2 {[%clk 0:00:03]}  Nb3 {[%clk 0:00:27]} 0-1

[Event "December 5 Early 2023"]
[Site "https://www.chess.com"]
[Date "2023.12.05"]
[Round "2"]
[White "Albornoz Cabrera, Carlos Daniel"]
[Black "Kashefi, Amir Hosein"]
[Result "1-0"]
[Board "78"]
[TimeControl "180+1"]
[WhiteFideId "3518736"]
[BlackFideId "12557935"]
[WhiteElo "2763"]
[BlackElo "2544"]
[WhiteTeam "CUB"]
[BlackTeam "IRI"]
[WhiteClock "0:00:14"]
[BlackClock "0:00:00"]

1. Nf3 {[%clk 0:03:00]}  d5 {[%clk 0:02:56]} 2. d4 {[%clk 0:03:00]}  Nf6 {[%clk 0:02:56]} 3. c4 {[%clk 0:03:01]}  c6 {[%clk 0:02:56]} 4. Nc3 {[%clk 0:03:01]}  Bf5 {[%clk 0:02:51]} 5. cxd5 {[%clk 0:03:01]}  Nxd5 {[%clk 0:02:51]} 6. Qb3 {[%clk 0:02:40]}  Qb6 {[%clk 0:02:50]} 7. Qxb6 {[%clk 0:02:18]}  Nxb6 {[%clk 0:02:43]} 8. e4 {[%clk 0:02:18]}  Bg6 {[%clk 0:02:43]} 9. Be3 {[%clk 0:02:15]}  N8d7 {[%clk 0:02:43]} 10. O-O-O {[%clk 0:02:13]}  e6 {[%clk 0:02:43]} 11. h4 {[%clk 0:02:13]}  h6 {[%clk 0:02:33]} 12. h5 {[%clk 0:02:13]}  Bh7 {[%clk 0:02:33]} 13. Be2 {[%clk 0:01:53]}  Bb4 {[%clk 0:02:29]} 14. Bd3 {[%clk 0:01:52]}  Nf6 {[%clk 0:02:18]} 15. e5 {[%clk 0:01:46]}  Nfd5 {[%clk 0:02:14]} 16. Bxh7 {[%clk 0:01:45]}  Rxh7 {[%clk 0:02:13]} 17. Ne4 {[%clk 0:01:43]}  O-O-O {[%clk 0:02:12]} 18. a3 {[%clk 0:01:42]}  Be7 {[%clk 0:02:12]} 19. Rh3 {[%clk 0:01:41]}  f5 {[%clk 0:02:02]} 20. exf6 {[%clk 0:01:40]}  gxf6 {[%clk 0:02:02]} 21. Nc5 {[%clk 0:01:38]}  Bxc5 {[%clk 0:01:51]} 22. dxc5 {[%clk 0:01:39]}  Na4 {[%clk 0:01:37]} 23. Rh4 {[%clk 0:01:22]}  Nxe3 {[%clk 0:01:16]} 24. Rxd8+ {[%clk 0:01:22]}  Kxd8 {[%clk 0:01:16]} 25. Rxa4 {[%clk 0:01:23]}  Nxg2 {[%clk 0:01:16]} 26. Rxa7 {[%clk 0:01:23]}  Nf4 {[%clk 0:01:16]} 27. Nd4 {[%clk 0:01:18]}  Rd7 {[%clk 0:01:14]} 28. Ra8+ {[%clk 0:01:12]}  Ke7 {[%clk 0:01:13]} 29. Nb3 {[%clk 0:01:08]}  Kf7 {[%clk 0:01:08]} 30. Kc2 {[%clk 0:01:06]}  Nxh5 {[%clk 0:01:07]} 31. Na5 {[%clk 0:01:05]}  Nf4 {[%clk 0:01:06]} 32. Rb8 {[%clk 0:01:03]}  h5 {[%clk 0:01:06]} 33. Nxb7 {[%clk 0:01:02]}  h4 {[%clk 0:01:04]} 34. Nd6+ {[%clk 0:01:02]}  Kg7 {[%clk 0:01:02]} 35. Rb4 {[%clk 0:01:02]}  e5 {[%clk 0:01:00]} 36. Nf5+ {[%clk 0:01:02]}  Kf7 {[%clk 0:00:56]} 37. Nxh4 {[%clk 0:01:03]}  Nd3 {[%clk 0:00:50]} 38. Rb6 {[%clk 0:01:02]}  Nxc5 {[%clk 0:00:44]} 39. Rxc6 {[%clk 0:01:01]}  Ne6 {[%clk 0:00:44]} 40. Nf5 {[%clk 0:00:56]}  Nd4+ {[%clk 0:00:20]} 41. Nxd4 {[%clk 0:00:56]}  Rxd4 {[%clk 0:00:21]} 42. Rc3 {[%clk 0:00:53]}  Rf4 {[%clk 0:00:20]} 43. f3 {[%clk 0:00:53]}  Rh4 {[%clk 0:00:17]} 44. b4 {[%clk 0:00:54]}  Ke6 {[%clk 0:00:18]} 45. b5 {[%clk 0:00:52]}  Kd5 {[%clk 0:00:13]} 46. b6 {[%clk 0:00:49]}  Rh8 {[%clk 0:00:13]} 47. a4 {[%clk 0:00:47]}  Ra8 {[%clk 0:00:13]} 48. Rb3 {[%clk 0:00:23]}  Kc6 {[%clk 0:00:11]} 49. a5 {[%clk 0:00:23]}  Kb7 {[%clk 0:00:09]} 50. Rb5 {[%clk 0:00:21]}  Rc8+ {[%clk 0:00:06]} 51. Kd3 {[%clk 0:00:21]}  Rd8+ {[%clk 0:00:07]} 52. Ke3 {[%clk 0:00:20]}  Rd4 {[%clk 0:00:06]} 53. Rc5 {[%clk 0:00:20]}  Ka6 {[%clk 0:00:05]} 54. Rc8 {[%clk 0:00:20]}  Rb4 {[%clk 0:00:02]} 55. Ra8+ {[%clk 0:00:19]}  Kb7 {[%clk 0:00:03]} 56. Ra7+ {[%clk 0:00:20]}  Kc6 {[%clk 0:00:03]} 57. Rc7+ {[%clk 0:00:20]}  Kd6 {[%clk 0:00:03]} 58. Rf7 {[%clk 0:00:17]}  Ke6 {[%clk 0:00:02]} 59. Ra7 {[%clk 0:00:16]}  f5 {[%clk 0:00:01]} 60. b7 {[%clk 0:00:16]}  Rb3+ {[%clk 0:00:02]} 61. Kd2 {[%clk 0:00:16]}  e4 {[%clk 0:00:00]} 62. Ra6+ {[%clk 0:00:14]} 1-0

[Event "December 5 Early 2023"]
[Site "https://www.chess.com"]
[Date "2023.12.05"]
[Round "2"]
[White "Saravana, Krishnan P."]
[Black "Wagner, Dennis"]
[Result "1/2-1/2"]
[Board "79"]
[TimeControl "180+1"]
[WhiteFideId "5018382"]
[BlackFideId "24650684"]
[WhiteElo "2544"]
[BlackElo "2762"]
[WhiteTeam "IND"]
[BlackTeam "GER"]
[WhiteClock "0:00:10"]
[BlackClock "0:00:05"]

1. e4 {[%clk 0:03:00]}  c5 {[%clk 0:02:55]} 2. Nf3 {[%clk 0:02:59]}  Nc6 {[%clk 0:02:54]} 3. Bb5 {[%clk 0:02:56]}  g6 {[%clk 0:02:52]} 4. Bxc6 {[%clk 0:02:52]}  bxc6 {[%clk 0:02:48]} 5. O-O {[%clk 0:02:51]}  Bg7 {[%clk 0:02:48]} 6. Re1 {[%clk 0:02:51]}  Nh6 {[%clk 0:02:44]} 7. c3 {[%clk 0:02:51]}  O-O {[%clk 0:02:43]} 8. d4 {[%clk 0:02:51]}  cxd4 {[%clk 0:02:33]} 9. cxd4 {[%clk 0:02:51]}  d5 {[%clk 0:02:33]} 10. e5 {[%clk 0:02:30]}  f6 {[%clk 0:02:33]} 11. exf6 {[%clk 0:02:07]}  exf6 {[%clk 0:02:32]} 12. h3 {[%clk 0:02:00]}  Nf5 {[%clk 0:02:30]} 13. b3 {[%clk 0:01:55]}  Bd7 {[%clk 0:02:24]} 14. Nc3 {[%clk 0:01:54]}  Re8 {[%clk 0:02:20]} 15. Na4 {[%clk 0:01:49]}  Bf8 {[%clk 0:02:13]} 16. Bd2 {[%clk 0:01:43]}  Rxe1+ {[%clk 0:01:23]} 17. Qxe1 {[%clk 0:01:40]}  Qe8 {[%clk 0:01:24]} 18. Qf1 {[%clk 0:01:07]}  g5 {[%clk 0:01:12]} 19. Rc1 {[%clk 0:01:04]}  Qg6 {[%clk 0:01:09]} 20. Qd3 {[%clk 0:00:51]}  Kh8 {[%clk 0:00:53]} 21. Nh2 {[%clk 0:00:48]}  Bd6 {[%clk 0:00:49]} 22. Nc5 {[%clk 0:00:43]}  Bxc5 {[%clk 0:00:32]} 23. Rxc5 {[%clk 0:00:40]}  Re8 {[%clk 0:00:32]} 24. Nf1 {[%clk 0:00:40]}  g4 {[%clk 0:00:27]} 25. hxg4 {[%clk 0:00:37]}  Qxg4 {[%clk 0:00:28]} 26. Ne3 {[%clk 0:00:26]}  Nxe3 {[%clk 0:00:16]} 27. Bxe3 {[%clk 0:00:26]}  Bf5 {[%clk 0:00:16]} 28. Qf1 {[%clk 0:00:26]}  Bd7 {[%clk 0:00:10]} 29. Rc3 {[%clk 0:00:26]}  Rg8 {[%clk 0:00:10]} 30. f3 {[%clk 0:00:26]}  Qh5 {[%clk 0:00:10]} 31. Rc2 {[%clk 0:00:24]}  Bf5 {[%clk 0:00:10]} 32. Rf2 {[%clk 0:00:23]}  Bh3 {[%clk 0:00:10]} 33. Qc1 {[%clk 0:00:22]}  Bd7 {[%clk 0:00:10]} 34. Bf4 {[%clk 0:00:21]}  Qf5 {[%clk 0:00:10]} 35. Qd2 {[%clk 0:00:21]}  Re8 {[%clk 0:00:10]} 36. Bh2 {[%clk 0:00:20]}  Qb1+ {[%clk 0:00:09]} 37. Rf1 {[%clk 0:00:20]}  Qg6 {[%clk 0:00:09]} 38. Re1 {[%clk 0:00:20]}  Rg8 {[%clk 0:00:09]} 39. Re7 {[%clk 0:00:18]}  Bh3 {[%clk 0:00:09]} 40. g3 {[%clk 0:00:18]}  Bf5 {[%clk 0:00:09]} 41. Re1 {[%clk 0:00:17]}  Qh5 {[%clk 0:00:09]} 42. Qf4 {[%clk 0:00:17]}  Qg6 {[%clk 0:00:08]} 43. g4 {[%clk 0:00:17]}  Bb1 {[%clk 0:00:09]} 44. Re7 {[%clk 0:00:15]}  Bxa2 {[%clk 0:00:08]} 45. Re6 {[%clk 0:00:13]}  Rf8 {[%clk 0:00:07]} 46. Kg2 {[%clk 0:00:13]}  Bxb3 {[%clk 0:00:07]} 47. Kg3 {[%clk 0:00:13]}  a5 {[%clk 0:00:07]} 48. Qd6 {[%clk 0:00:13]}  Kg7 {[%clk 0:00:06]} 49. Re7+ {[%clk 0:00:12]}  Rf7 {[%clk 0:00:07]} 50. Rxf7+ {[%clk 0:00:12]}  Qxf7 {[%clk 0:00:08]} 51. Qxc6 {[%clk 0:00:13]}  a4 {[%clk 0:00:08]} 52. Qc5 {[%clk 0:00:13]}  Qd7 {[%clk 0:00:07]} 53. Kf2 {[%clk 0:00:12]}  Bc4 {[%clk 0:00:08]} 54. g5 {[%clk 0:00:12]}  fxg5 {[%clk 0:00:07]} 55. Be5+ {[%clk 0:00:12]}  Kf7 {[%clk 0:00:07]} 56. Qb6 {[%clk 0:00:12]}  a3 {[%clk 0:00:03]} 57. Qf6+ {[%clk 0:00:11]}  Ke8 {[%clk 0:00:04]} 58. Qh8+ {[%clk 0:00:11]}  Ke7 {[%clk 0:00:04]} 59. Qf6+ {[%clk 0:00:11]}  Ke8 {[%clk 0:00:04]} 60. Qh8+ {[%clk 0:00:11]}  Ke7 {[%clk 0:00:05]} 61. Qf6+ {[%clk 0:00:10]}  Ke8 {[%clk 0:00:05]} 1/2-1/2

[Event "December 5 Early 2023"]
[Site "https://www.chess.com"]
[Date "2023.12.05"]
[Round "2"]
[White "Chylewski, Patryk"]
[Black "Sokolovsky, Yahli"]
[Result "0-1"]
[Board "82"]
[TimeControl "180+1"]
[WhiteFideId "1186191"]
[BlackFideId "2820242"]
[WhiteElo "2542"]
[BlackElo "2755"]
[WhiteTeam "POL"]
[BlackTeam "ISR"]
[WhiteClock "0:00:02"]
[BlackClock "0:00:07"]

1. c4 {[%clk 0:02:59]}  d6 {[%clk 0:02:44]} 2. Nf3 {[%clk 0:02:57]}  e5 {[%clk 0:02:43]} 3. Nc3 {[%clk 0:02:46]}  f5 {[%clk 0:02:42]} 4. g3 {[%clk 0:02:01]}  Nc6 {[%clk 0:02:36]} 5. d4 {[%clk 0:01:51]}  e4 {[%clk 0:02:35]} 6. Ng5 {[%clk 0:01:51]}  h6 {[%clk 0:02:27]} 7. Nh3 {[%clk 0:01:49]}  g5 {[%clk 0:02:25]} 8. Ng1 {[%clk 0:01:42]}  Bg7 {[%clk 0:02:19]} 9. e3 {[%clk 0:01:31]}  Nf6 {[%clk 0:02:13]} 10. h4 {[%clk 0:01:22]}  g4 {[%clk 0:02:12]} 11. Nge2 {[%clk 0:01:19]}  Nh5 {[%clk 0:02:11]} 12. b3 {[%clk 0:01:09]}  Nb4 {[%clk 0:01:48]} 13. Ng1 {[%clk 0:00:52]}  c5 {[%clk 0:01:42]} 14. a3 {[%clk 0:00:31]}  cxd4 {[%clk 0:01:24]} 15. axb4 {[%clk 0:00:16]}  dxc3 {[%clk 0:01:00]} 16. Qc2 {[%clk 0:00:16]}  Be6 {[%clk 0:00:27]} 17. Ne2 {[%clk 0:00:16]}  d5 {[%clk 0:00:28]} 18. Nxc3 {[%clk 0:00:14]}  O-O {[%clk 0:00:22]} 19. Be2 {[%clk 0:00:14]}  Qd6 {[%clk 0:00:13]} 20. Ba3 {[%clk 0:00:05]}  Nxg3 {[%clk 0:00:09]} 21. fxg3 {[%clk 0:00:04]}  Qxg3+ {[%clk 0:00:10]} 22. Kd2 {[%clk 0:00:04]}  d4 {[%clk 0:00:09]} 23. exd4 {[%clk 0:00:04]}  Bxd4 {[%clk 0:00:09]} 24. Rad1 {[%clk 0:00:03]}  Rad8 {[%clk 0:00:09]} 25. Kc1 {[%clk 0:00:02]}  Bxc3 {[%clk 0:00:08]} 26. Kb1 {[%clk 0:00:02]}  Bf6 {[%clk 0:00:07]} 27. Bc1 {[%clk 0:00:02]}  Qe5 {[%clk 0:00:07]} 28. Bb2 {[%clk 0:00:01]}  Qxb2+ {[%clk 0:00:08]} 29. Qxb2 {[%clk 0:00:02]}  Bxb2 {[%clk 0:00:08]} 30. Kxb2 {[%clk 0:00:03]}  h5 {[%clk 0:00:08]} 31. c5 {[%clk 0:00:04]}  Kf7 {[%clk 0:00:07]} 32. Rhf1 {[%clk 0:00:02]}  Ke7 {[%clk 0:00:08]} 33. b5 {[%clk 0:00:02]}  Rxd1 {[%clk 0:00:08]} 34. Bxd1 {[%clk 0:00:02]}  Rd8 {[%clk 0:00:09]} 35. Kc3 {[%clk 0:00:02]}  Rd3+ {[%clk 0:00:09]} 36. Kb4 {[%clk 0:00:02]}  b6 {[%clk 0:00:07]} 37. c6 {[%clk 0:00:02]}  Kd6 {[%clk 0:00:07]} 38. Bc2 {[%clk 0:00:03]}  Rd2 {[%clk 0:00:07]} 39. Kc3 {[%clk 0:00:03]}  Rd5 {[%clk 0:00:05]} 40. Kb4 {[%clk 0:00:03]}  Rd4+ {[%clk 0:00:04]} 41. Kc3 {[%clk 0:00:03]}  Rd5 {[%clk 0:00:05]} 42. Kb4 {[%clk 0:00:03]}  e3 {[%clk 0:00:05]} 43. Kc3 {[%clk 0:00:02]}  e2 {[%clk 0:00:05]} 44. Re1 {[%clk 0:00:02]}  Re5 {[%clk 0:00:06]} 45. Bd3 {[%clk 0:00:02]}  f4 {[%clk 0:00:06]} 46. Rxe2 {[%clk 0:00:02]}  Rxe2 {[%clk 0:00:06]} 47. Bxe2 {[%clk 0:00:03]}  f3 {[%clk 0:00:06]} 48. Bd3 {[%clk 0:00:03]}  g3 {[%clk 0:00:06]} 49. Be4 {[%clk 0:00:02]}  g2 {[%clk 0:00:07]} 0-1

[Event "December 5 Early 2023"]
[Site "https://www.chess.com"]
[Date "2023.12.05"]
[Round "2"]
[White "Kotyk, Michael"]
[Black "Kislinsky, Alexey"]
[Result "1-0"]
[Board "86"]
[TimeControl "180+1"]
[WhiteFideId "16214501"]
[BlackFideId "14108801"]
[WhiteElo "2518"]
[BlackElo "2729"]
[WhiteTeam "GER"]
[BlackTeam "CZE"]
[WhiteClock "0:01:15"]
[BlackClock "0:00:00"]

1. e4 {[%clk 0:03:00]}  c5 {[%clk 0:02:59]} 2. c3 {[%clk 0:03:00]}  Nf6 {[%clk 0:02:58]} 3. e5 {[%clk 0:03:00]}  Nd5 {[%clk 0:02:58]} 4. Bc4 {[%clk 0:03:00]}  Nb6 {[%clk 0:02:58]} 5. Bb3 {[%clk 0:02:54]}  Nc6 {[%clk 0:02:55]} 6. d4 {[%clk 0:02:53]}  cxd4 {[%clk 0:02:55]} 7. cxd4 {[%clk 0:02:54]}  d5 {[%clk 0:02:50]} 8. Nc3 {[%clk 0:02:54]}  Bf5 {[%clk 0:02:49]} 9. Nge2 {[%clk 0:02:50]}  e6 {[%clk 0:02:48]} 10. Be3 {[%clk 0:02:49]}  Rc8 {[%clk 0:02:46]} 11. Ng3 {[%clk 0:02:49]}  Bg6 {[%clk 0:02:46]} 12. O-O {[%clk 0:02:46]}  Bb4 {[%clk 0:02:42]} 13. f4 {[%clk 0:02:45]}  O-O {[%clk 0:02:36]} 14. f5 {[%clk 0:02:44]}  exf5 {[%clk 0:02:35]} 15. Nxf5 {[%clk 0:02:45]}  Na5 {[%clk 0:02:36]} 16. Rc1 {[%clk 0:02:32]}  Qd7 {[%clk 0:02:30]} 17. Qg4 {[%clk 0:02:27]}  Nxb3 {[%clk 0:02:25]} 18. axb3 {[%clk 0:02:24]}  Rc6 {[%clk 0:02:13]} 19. Ne2 {[%clk 0:02:06]}  Rfc8 {[%clk 0:02:08]} 20. Rxc6 {[%clk 0:02:05]}  Rxc6 {[%clk 0:02:09]} 21. Neg3 {[%clk 0:02:02]}  Rc2 {[%clk 0:01:52]} 22. h4 {[%clk 0:01:56]}  Bf8 {[%clk 0:01:01]} 23. h5 {[%clk 0:01:52]}  Bxf5 {[%clk 0:01:02]} 24. Nxf5 {[%clk 0:01:53]}  g6 {[%clk 0:00:58]} 25. hxg6 {[%clk 0:01:42]}  hxg6 {[%clk 0:00:59]} 26. Bh6 {[%clk 0:01:31]}  Rc7 {[%clk 0:00:19]} 27. Qg5 {[%clk 0:01:24]}  Qe6 {[%clk 0:00:09]} 28. Bxf8 {[%clk 0:01:22]}  Kxf8 {[%clk 0:00:08]} 29. Qh6+ {[%clk 0:01:17]}  Ke8 {[%clk 0:00:04]} 30. Nd6+ {[%clk 0:01:18]}  Kd7 {[%clk 0:00:05]} 31. Rxf7+ {[%clk 0:01:16]}  Kc6 {[%clk 0:00:05]} 32. Qc1+ {[%clk 0:01:16]}  Nc4 {[%clk 0:00:00]} 33. Rxc7+ {[%clk 0:01:15]} 1-0